Workbook

Sheet trialcsv marriages May 28
A1: Image ID | B1: URL | C1: Year | D1: Line # | E1: 2 Digit Month | F1: 2 Digit Day | G1: Town or County | H1: Husband First Name | I1: Husband Last Name | J1: Wife First Name | K1: Wife Last Name | L1: White | M1: Colored | N1: Years (Age) Husband | O1: Calculated Husb Birth Yr | P1: Years (Age) Wife | Q1: Calculated Wife Birth Yr | R1: Single or Widowed Husband | S1: Single or Widowed Wife | T1: Place of Birth Husband | U1: Place of Birth Wife | V1: Place of Residence Husband | W1: Place of Residence Wife | X1: Parents Husband Father's first name | Y1: Parents Husband Mother's first name | Z1: Parents Husband last name | AA1: Parents Wife Father's first name | AB1: Parents Wife Mother's first name | AC1: Parents Wife Last Name | AD1: Occupation Husband | AE1: Name of Person Performing Marriage Ceremony
A2: 1880_C | B2: http://piedmontvahistory.org/archives14/items/show/835 | C2: 1880 | D2: 6 | H2: Soleman | I2: Lawrence? | M2: X | N2: 22 | O2: =+C2-N2 -> 1858 | P2: 21 | Q2: =+C2-P2 -> 1859 | R2: For following columns see image from URL
A3: 1877_D | B3: http://piedmontvahistory.org/archives14/items/show/821 | C3: 1877 | D3: 56 | H3: Gordon | I3: Burruss | J3: Isabella | M3: X | N3: 23 | O3: =+C3-N3 -> 1854 | P3: 22 | Q3: =+C3-P3 -> 1855 | R3: For following columns see image from URL
A4: 1907_D | B4: http://piedmontvahistory.org/archives14/index.php/items/show/959 | C4: 1907 | D4: 135 | H4: James | I4: Jackson | J4: Not given | M4: X | N4: 37 | O4: =+C4-N4 -> 1870 | P4: 25 | Q4: =+C4-P4 -> 1882 | R4: For following columns see image from URL
A5: 1876_C | B5: http://piedmontvahistory.org/archives14/items/show/816 | C5: 1876 | D5: 5 | H5: Jno | I5: Brice | J5: Pattie M | K5: ? | M5: X | N5: 23 | O5: =+C5-N5 -> 1853 | P5: 21 | Q5: =+C5-P5 -> 1855 | R5: For following columns see image from URL
A6: 1876_C | B6: http://piedmontvahistory.org/archives14/items/show/816 | C6: 1876 | D6: 8 | H6: Randal | I6: Johnson | J6: Willie | K6: ? | M6: X | N6: 21 | O6: =+C6-N6 -> 1855 | P6: 20 | Q6: =+C6-P6 -> 1856 | R6: For following columns see image from URL
A7: 1898_C | B7: http://piedmontvahistory.org/archives14/index.php/items/show/921 | C7: 1898 | D7: 29 | H7: Albert | I7: Johnson | J7: Alice | K7: Adams | M7: X | N7: 22 | O7: =+C7-N7 -> 1876 | P7: 22 | Q7: =+C7-P7 -> 1876 | R7: For following columns see image from URL
A8: 1886_D | B8: http://piedmontvahistory.org/archives14/index.php/items/show/863 | C8: 1886 | D8: 9 | H8: Garland | I8: Smith | J8: Eliza | K8: Adams | M8: X | N8: 26 | O8: =+C8-N8 -> 1860 | P8: 22 | Q8: =+C8-P8 -> 1864 | R8: For following columns see image from URL
A9: 1881_C | B9: http://piedmontvahistory.org/archives14/items/show/840 | C9: 1881 | D9: 7 | H9: Jas M | I9: Knight | J9: Georgianna | K9: Adams | M9: X | N9: 22 | O9: =+C9-N9 -> 1859 | P9: 17 | Q9: =+C9-P9 -> 1864 | R9: For following columns see image from URL
A10: 1913_C | B10: http://piedmontvahistory.org/archives14/index.php/items/show/985 | C10: 1913 | D10: 71 | H10: Wm | I10: Simon | J10: Ladonia | K10: Adams | M10: X | N10: 24 | O10: =+C10-N10 -> 1889 | P10: 30 | Q10: =+C10-P10 -> 1883 | R10: For following columns see image from URL
A11: 1920_C | B11: http://piedmontvahistory.org/archives14/index.php/items/show/1014 | C11: 1920 | D11: 66 | H11: Archie | I11: Cosby | J11: Anna | K11: Alexander | M11: X | N11: 48 | O11: =+C11-N11 -> 1872 | P11: 46 | Q11: =+C11-P11 -> 1874 | R11: For following columns see image from URL
A12: 1909_C | B12: http://piedmontvahistory.org/archives14/index.php/items/show/967 | C12: 1909 | D12: 69 | H12: Edward | I12: Morton | J12: Bettie | K12: Allen | M12: X | N12: 50 | O12: =+C12-N12 -> 1859 | P12: 54 | Q12: =+C12-P12 -> 1855 | R12: For following columns see image from URL
A13: 1868_B | B13: http://piedmontvahistory.org/archives14/items/show/778 | C13: 1868 | D13: 25 | H13: George | I13: Washington | J13: Eliza | K13: Allen | M13: X | N13: 21 | O13: =+C13-N13 -> 1847 | P13: 21 | Q13: =+C13-P13 -> 1847 | R13: For following columns see image from URL
A14: 1868CC | B14: http://piedmontvahistory.org/archives14/items/show/1165 | C14: 1868 | D14: 32 | H14: George | I14: Washington | J14: Eliza | K14: Allen | M14: X | N14: 21 | O14: =+C14-N14 -> 1847 | P14: 21 | Q14: =+C14-P14 -> 1847 | R14: For following columns see image from URL
A15: 1907_D | B15: http://piedmontvahistory.org/archives14/index.php/items/show/959 | C15: 1907 | D15: 99 | H15: Reuben | I15: Clarke | J15: Josephine | K15: Allen | M15: X | N15: 22 | O15: =+C15-N15 -> 1885 | P15: 21 | Q15: =+C15-P15 -> 1886 | R15: For following columns see image from URL
A16: 1906_E | B16: http://piedmontvahistory.org/archives14/index.php/items/show/955 | C16: 1906 | D16: 139 | H16: Dean | I16: Tinsley | J16: Maggie | K16: Allen | M16: X | N16: 21 | O16: =+C16-N16 -> 1885 | P16: 21 | Q16: =+C16-P16 -> 1885 | R16: For following columns see image from URL
A17: 1885_C | B17: http://piedmontvahistory.org/archives14/index.php/items/show/858 | C17: 1885 | D17: 22 | H17: John | I17: Allen | J17: Maria | K17: Allen | M17: X | N17: 65 | O17: =+C17-N17 -> 1820 | P17: 32 | Q17: =+C17-P17 -> 1853 | R17: For following columns see image from URL
A18: 1902_A | B18: http://piedmontvahistory.org/archives14/index.php/items/show/935 | C18: 1902 | D18: 5 | H18: R E | I18: Wood | J18: Mary | K18: Allen | M18: X | N18: 29 | O18: =+C18-N18 -> 1873 | P18: 20 | Q18: =+C18-P18 -> 1882 | R18: For following columns see image from URL
A19: 1909_C | B19: http://piedmontvahistory.org/archives14/index.php/items/show/967 | C19: 1909 | D19: 85 | H19: Leon | I19: Miner | J19: Rosa | K19: Allen | M19: X | N19: 23 | O19: =+C19-N19 -> 1886 | P19: 18 | Q19: =+C19-P19 -> 1891 | R19: For following columns see image from URL
A20: 1907_C | B20: http://piedmontvahistory.org/archives14/index.php/items/show/958 | C20: 1907 | D20: 97 | H20: Mercer | I20: Quarles | J20: Sallie | K20: Ambler | M20: X | N20: 37 | O20: =+C20-N20 -> 1870 | P20: 20 | Q20: =+C20-P20 -> 1887 | R20: For following columns see image from URL
A21: 1933_A | B21: http://piedmontvahistory.org/archives14/index.php/items/show/1064 | C21: 1933 | D21: 20 | H21: Roy F | I21: Campbell | J21: Della M | K21: Amick | M21: X | N21: 29 | O21: =+C21-N21 -> 1904 | P21: 25 | Q21: =+C21-P21 -> 1908 | R21: For following columns see image from URL
A22: 1935_B | B22: http://piedmontvahistory.org/archives14/items/show/1073 | C22: 1935 | D22: 24 | H22: Jas E | I22: Davis | J22: Annie O | K22: Amos | M22: X | N22: 21 | O22: =+C22-N22 -> 1914 | P22: 21 | Q22: =+C22-P22 -> 1914 | R22: For following columns see image from URL
A23: 1888_E | B23: http://www.piedmontvahistory.org/archives14/items/show/875 | C23: 1888 | D23: 26 | H23: Henry | I23: Payne | J23: Sue | K23: Anders | M23: X | N23: 30 | O23: =+C23-N23 -> 1858 | P23: 19 | Q23: =+C23-P23 -> 1869 | R23: For following columns see image from URL
A24: 1910_D | B24: http://piedmontvahistory.org/archives14/index.php/items/show/973 | C24: 1910 | D24: 46 | H24: Robert T | I24: Yancey | J24: Amanda | K24: Anderson | M24: X | N24: 75 | O24: =+C24-N24 -> 1835 | P24: 45 | Q24: =+C24-P24 -> 1865 | R24: For following columns see image from URL
A25: 1878_C | B25: http://piedmontvahistory.org/archives14/items/show/825 | C25: 1878 | D25: 32 | H25: Gilbert | I25: Brockman | J25: Angelina | K25: Anderson | M25: X | N25: 26 | O25: =+C25-N25 -> 1852 | P25: 22 | Q25: =+C25-P25 -> 1856 | R25: For following columns see image from URL
A26: 1905_C | B26: http://piedmontvahistory.org/archives14/index.php/items/show/949 | C26: 1905 | D26: 69 | H26: Aubrey | I26: Cromwell | J26: Annie | K26: Anderson | M26: X | N26: 28 | O26: =+C26-N26 -> 1877 | P26: 21 | Q26: =+C26-P26 -> 1884 | R26: For following columns see image from URL
A27: 1915_C | B27: http://piedmontvahistory.org/archives14/index.php/items/show/993 | C27: 1915 | D27: 70 | H27: Rich B | I27: Coleman | J27: Artie M | K27: Anderson | M27: X | N27: 24 | O27: =+C27-N27 -> 1891 | P27: 22 | Q27: =+C27-P27 -> 1893 | R27: For following columns see image from URL
A28: 1919_B | B28: http://piedmontvahistory.org/archives14/index.php/items/show/1009 | C28: 1919 | D28: 60 | H28: Chas W McKinley | I28: Yancey | J28: Berta A | K28: Anderson | M28: X | N28: 21 | O28: =+C28-N28 -> 1898 | P28: 18 | Q28: =+C28-P28 -> 1901 | R28: For following columns see image from URL
A29: 1866 1867 | B29: http://piedmontvahistory.org/archives14/items/show/1162 | C29: 1866 | D29: 19 | H29: Randolph | I29: Wyatt | J29: Betsy | K29: Anderson | M29: X | N29: 37 | O29: =+C29-N29 -> 1829 | P29: 17 | Q29: =+C29-P29 -> 1849 | R29: For following columns see image from URL
A30: 1866_C | B30: http://piedmontvahistory.org/archives14/items/show/772 | C30: 1866 | D30: 56 | H30: Randolph | I30: Wyatt | J30: Betsy | K30: Anderson | M30: X | N30: 37 | O30: =+C30-N30 -> 1829 | P30: 17 | Q30: =+C30-P30 -> 1849 | R30: For following columns see image from URL
A31: 1891_D | B31: http://piedmontvahistory.org/archives14/index.php/items/show/889 | C31: 1891 | D31: 32 | H31: Thos H | I31: Talley | J31: Bettie | K31: Anderson | M31: X | N31: 21 | O31: =+C31-N31 -> 1870 | P31: 21 | Q31: =+C31-P31 -> 1870 | R31: For following columns see image from URL
A32: 1897_D | B32: http://piedmontvahistory.org/archives14/index.php/items/show/918 | C32: 1897 | D32: 11 | H32: Theo | I32: Foy | J32: Bettie A | K32: Anderson | M32: X | O32: =+C32-N32 ->  | Q32: =+C32-P32 -> 1897 | R32: For following columns see image from URL
A33: 1915_D | B33: http://piedmontvahistory.org/archives14/index.php/items/show/994 | C33: 1915 | D33: 86 | H33: Wm | I33: Hooker | J33: Callie | K33: Anderson | M33: X | N33: 22 | O33: =+C33-N33 -> 1893 | P33: 18 | Q33: =+C33-P33 -> 1897 | R33: For following columns see image from URL
A34: 1931_B | B34: http://piedmontvahistory.org/archives14/index.php/items/show/1057 | C34: 1931 | D34: 65 | H34: Henry | I34: Thomas | J34: Carrie | K34: Anderson | M34: X | N34: 22 | O34: =+C34-N34 -> 1909 | P34: 17 | Q34: =+C34-P34 -> 1914 | R34: For following columns see image from URL
A35: 1879_C | B35: http://piedmontvahistory.org/archives14/items/show/831 | C35: 1879 | D35: 1 | H35: Richd | I35: Morris | J35: Charlotte | K35: Anderson | M35: X | N35: 45 | O35: =+C35-N35 -> 1834 | P35: 17 | Q35: =+C35-P35 -> 1862 | R35: For following columns see image from URL
A36: 1927_C | B36: http://piedmontvahistory.org/archives14/index.php/items/show/1042 | C36: 1927 | D36: 91 | H36: D C | I36: Thomas | J36: Chlora | K36: Anderson | M36: X | N36: 40 | O36: =+C36-N36 -> 1887 | P36: 21 | Q36: =+C36-P36 -> 1906 | R36: For following columns see image from URL
A37: 1894_C | B37: http://piedmontvahistory.org/archives14/index.php/items/show/904 | C37: 1894 | D37: 24 | H37: Mack | I37: West | J37: Clara | K37: Anderson | M37: X | N37: 23 | O37: =+C37-N37 -> 1871 | P37: 24 | Q37: =+C37-P37 -> 1870 | R37: For following columns see image from URL
A38: 1917_D | B38: http://piedmontvahistory.org/archives14/index.php/items/show/1003 | C38: 1917 | D38: 20 | H38: Walter J | I38: Gooch | J38: Dollie | K38: Anderson | M38: X | N38: 21 | O38: =+C38-N38 -> 1896 | P38: 21 | Q38: =+C38-P38 -> 1896 | R38: For following columns see image from URL
A39: 1876_C | B39: http://piedmontvahistory.org/archives14/items/show/816 | C39: 1876 | D39: 25 | H39: Anthony | I39: Gray | J39: Dolly | K39: Anderson | M39: X | N39: 26 | O39: =+C39-N39 -> 1850 | P39: 26 | Q39: =+C39-P39 -> 1850 | R39: For following columns see image from URL
A40: 1876_D | B40: http://piedmontvahistory.org/archives14/items/show/817 | C40: 1876 | D40: 22 | H40: James | I40: Morris | J40: Edmonia | K40: Anderson | M40: X | N40: 22 | O40: =+C40-N40 -> 1854 | P40: 21 | Q40: =+C40-P40 -> 1855 | R40: For following columns see image from URL
A41: 1926_C | B41: http://piedmontvahistory.org/archives14/index.php/items/show/1038 | C41: 1926 | D41: 81 | H41: Junious | I41: Vest | J41: Edna | K41: Anderson | M41: X | N41: 26 | O41: =+C41-N41 -> 1900 | P41: 21 | Q41: =+C41-P41 -> 1905 | R41: For following columns see image from URL
A42: 1906_D | B42: http://piedmontvahistory.org/archives14/index.php/items/show/954 | C42: 1906 | D42: 101 | H42: Geo | I42: Brown | J42: Eliza J | K42: Anderson | M42: X | N42: 29 | O42: =+C42-N42 -> 1877 | P42: 29 | Q42: =+C42-P42 -> 1877 | R42: For following columns see image from URL
A43: 1921_C | B43: http://piedmontvahistory.org/archives14/index.php/items/show/1018 | C43: 1921 | D43: 66 | H43: Frank | I43: Shelton | J43: Emma | K43: Anderson | M43: X | N43: 35 | O43: =+C43-N43 -> 1886 | P43: 28 | Q43: =+C43-P43 -> 1893 | R43: For following columns see image from URL
A44: 1914_C | B44: http://piedmontvahistory.org/archives14/index.php/items/show/989 | C44: 1914 | D44: 76 | H44: Patrick H | I44: West | J44: Geneva | K44: Anderson | M44: X | N44: 22 | O44: =+C44-N44 -> 1892 | P44: 24 | Q44: =+C44-P44 -> 1890 | R44: For following columns see image from URL
A45: 1893_D | B45: http://piedmontvahistory.org/archives14/index.php/items/show/901 | C45: 1893 | D45: 55 | H45: Nick | I45: Thompson | J45: Georgia | K45: Anderson | M45: X | N45: 40 | O45: =+C45-N45 -> 1853 | P45: 35 | Q45: =+C45-P45 -> 1858 | R45: For following columns see image from URL
A46: 1894_C | B46: http://piedmontvahistory.org/archives14/index.php/items/show/904 | C46: 1894 | D46: 10 | H46: Nick | I46: Thompson | J46: Georgia | K46: Anderson | M46: X | N46: 40 | O46: =+C46-N46 -> 1854 | P46: 35 | Q46: =+C46-P46 -> 1859 | R46: For following columns see image from URL
A47: 1933_D | B47: http://piedmontvahistory.org/archives14/index.php/items/show/1067 | C47: 1933 | D47: 91 | H47: Prince T | I47: Jones | J47: Gertrude | K47: Anderson | M47: X | N47: 21 | O47: =+C47-N47 -> 1912 | P47: 18 | Q47: =+C47-P47 -> 1915 | R47: For following columns see image from URL
A48: 1877_C | B48: http://piedmontvahistory.org/archives14/items/show/820 | C48: 1877 | D48: 27 | H48: Andrew | I48: King | J48: Harriet | K48: Anderson | M48: X | N48: 26 | O48: =+C48-N48 -> 1851 | P48: 23 | Q48: =+C48-P48 -> 1854 | R48: For following columns see image from URL
A49: 1931_C | B49: http://piedmontvahistory.org/archives14/index.php/items/show/1058 | C49: 1931 | D49: 76 | H49: Jas | I49: Anderson | J49: Harriett | K49: Anderson | M49: X | N49: 21 | O49: =+C49-N49 -> 1910 | P49: 21 | Q49: =+C49-P49 -> 1910 | R49: For following columns see image from URL
A50: 1905_C | B50: http://piedmontvahistory.org/archives14/index.php/items/show/949 | C50: 1905 | D50: 60 | H50: Wm M | I50: Poindexter | J50: Hassie | K50: Anderson | M50: X | N50: 27 | O50: =+C50-N50 -> 1878 | P50: 19 | Q50: =+C50-P50 -> 1886 | R50: For following columns see image from URL
A51: 1927_C | B51: http://piedmontvahistory.org/archives14/index.php/items/show/1042 | C51: 1927 | D51: 96 | H51: Henry D | I51: Nuckols | J51: Helen F | K51: Anderson | M51: X | N51: 26 | O51: =+C51-N51 -> 1901 | P51: 19 | Q51: =+C51-P51 -> 1908 | R51: For following columns see image from URL
A52: 1877_C | B52: http://piedmontvahistory.org/archives14/items/show/820 | C52: 1877 | D52: 34 | H52: Stephen | I52: Watson | J52: Isadora | K52: Anderson | M52: X | N52: 30 | O52: =+C52-N52 -> 1847 | P52: 19 | Q52: =+C52-P52 -> 1858 | R52: For following columns see image from URL
A53: 1935_C | B53: http://piedmontvahistory.org/archives14/items/show/1074 | C53: 1935 | D53: 23 | H53: Thomas | I53: Lucus | J53: Jennett | K53: Anderson | M53: X | N53: 39 | O53: =+C53-N53 -> 1896 | P53: 21 | Q53: =+C53-P53 -> 1914 | R53: For following columns see image from URL
A54: 1907_C | B54: http://piedmontvahistory.org/archives14/index.php/items/show/958 | C54: 1907 | D54: 67 | H54: Montee | I54: Mickins | J54: Jennie | K54: Anderson | M54: X | N54: 21 | O54: =+C54-N54 -> 1886 | P54: 16 | Q54: =+C54-P54 -> 1891 | R54: For following columns see image from URL
A55: 1893_C | B55: http://piedmontvahistory.org/archives14/index.php/items/show/899 | C55: 1893 | D55: 33 | H55: Wash | I55: Talley | J55: Judie | K55: Anderson | M55: X | N55: 39 | O55: =+C55-N55 -> 1854 | P55: 30 | Q55: =+C55-P55 -> 1863 | R55: For following columns see image from URL
A56: 1896_C | B56: http://piedmontvahistory.org/archives14/index.php/items/show/913 | C56: 1896 | D56: 1 | H56: Washington | I56: Talley | J56: Judy | K56: Anderson | M56: X | N56: 40 | O56: =+C56-N56 -> 1856 | P56: 30 | Q56: =+C56-P56 -> 1866 | R56: For following columns see image from URL
A57: 1889_C | B57: http://piedmontvahistory.org/archives14/index.php/items/show/881 | C57: 1889 | D57: 4 | H57: Ro | I57: Clark | J57: Lucy | K57: Anderson | M57: X | N57: 21 | O57: =+C57-N57 -> 1868 | P57: 20 | Q57: =+C57-P57 -> 1869 | R57: For following columns see image from URL
A58: 1902_A | B58: http://piedmontvahistory.org/archives14/index.php/items/show/935 | C58: 1902 | D58: 8 | H58: Verb | I58: Thomas | J58: Lucy B | K58: Anderson | M58: X | N58: 19 | O58: =+C58-N58 -> 1883 | P58: 16 | Q58: =+C58-P58 -> 1886 | R58: For following columns see image from URL
A59: 1899_D | B59: http://piedmontvahistory.org/archives14/index.php/items/show/925 | C59: 1899 | D59: 104 | H59: Robt | I59: Randall | J59: Malvina | K59: Anderson | M59: X | N59: 24 | O59: =+C59-N59 -> 1875 | P59: 35 | Q59: =+C59-P59 -> 1864 | R59: For following columns see image from URL
A60: 1906_E | B60: http://piedmontvahistory.org/archives14/index.php/items/show/955 | C60: 1906 | D60: 138 | H60: Z B | I60: Thomas | J60: Mamie | K60: Anderson | M60: X | N60: 21 | O60: =+C60-N60 -> 1885 | P60: 20 | Q60: =+C60-P60 -> 1886 | R60: For following columns see image from URL
A61: 1871_C | B61: http://piedmontvahistory.org/archives14/items/show/793 | C61: 1871 | D61: 6 | H61: James | I61: Anderson | J61: Martha | K61: Anderson | M61: X | N61: 25 | O61: =+C61-N61 -> 1846 | P61: 23 | Q61: =+C61-P61 -> 1848 | R61: For following columns see image from URL
A62: 1901_E | B62: http://piedmontvahistory.org/archives14/index.php/items/show/934 | C62: 1901 | D62: 154 | H62: Edwd | I62: Shelton | J62: Martha | K62: Anderson | M62: X | N62: 23 | O62: =+C62-N62 -> 1878 | P62: 22 | Q62: =+C62-P62 -> 1879 | R62: For following columns see image from URL
A63: 1884_C | B63: http://piedmontvahistory.org/archives14/index.php/items/show/853 | C63: 1884 | D63: 12 | H63: Lee | I63: Houchins | J63: Mary | K63: Anderson | M63: X | N63: 22 | O63: =+C63-N63 -> 1862 | P63: 27 | Q63: =+C63-P63 -> 1857 | R63: For following columns see image from URL
A64: 1897_C | B64: http://piedmontvahistory.org/archives14/index.php/items/show/917 | C64: 1897 | D64: 3 | H64: King S | I64: Robinson | J64: Mary | K64: Anderson | M64: X | N64: 32 | O64: =+C64-N64 -> 1865 | P64: 23 | Q64: =+C64-P64 -> 1874 | R64: For following columns see image from URL
A65: 1895_D | B65: http://piedmontvahistory.org/archives14/index.php/items/show/909 | C65: 1895 | D65: 22 | H65: Wm H | I65: Dabney | J65: Mary | K65: Anderson | M65: X | N65: 29 | O65: =+C65-N65 -> 1866 | P65: 18 | Q65: =+C65-P65 -> 1877 | R65: For following columns see image from URL
A66: 1913_C | B66: http://piedmontvahistory.org/archives14/index.php/items/show/985 | C66: 1913 | D66: 79 | H66: Frank | I66: Russell | J66: Mary | K66: Anderson | M66: X | N66: 22 | O66: =+C66-N66 -> 1891 | P66: 22 | Q66: =+C66-P66 -> 1891 | R66: For following columns see image from URL
A67: 1907_D | B67: http://piedmontvahistory.org/archives14/index.php/items/show/959 | C67: 1907 | D67: 102 | H67: Ro | I67: Henderson | J67: Mattie | K67: Anderson | M67: X | N67: 34 | O67: =+C67-N67 -> 1873 | P67: 30 | Q67: =+C67-P67 -> 1877 | R67: For following columns see image from URL
A68: 1897_D | B68: http://piedmontvahistory.org/archives14/index.php/items/show/918 | C68: 1897 | D68: 3 | H68: Archie L | I68: Cosby | J68: Mattie | K68: Anderson | M68: X | N68: 24 | O68: =+C68-N68 -> 1873 | P68: 18 | Q68: =+C68-P68 -> 1879 | R68: For following columns see image from URL
A69: 1913_C | B69: http://piedmontvahistory.org/archives14/index.php/items/show/985 | C69: 1913 | D69: 100 | H69: Andrew | I69: Timberlake | J69: Mattie | K69: Anderson | M69: X | N69: 40 | O69: =+C69-N69 -> 1873 | P69: 30 | Q69: =+C69-P69 -> 1883 | R69: For following columns see image from URL
A70: 1907_C | B70: http://piedmontvahistory.org/archives14/index.php/items/show/958 | C70: 1907 | D70: 84 | H70: George | I70: Henderson | J70: Mattie | K70: Anderson | M70: X | N70: 25 | O70: =+C70-N70 -> 1882 | P70: 21 | Q70: =+C70-P70 -> 1886 | R70: For following columns see image from URL
A71: 1904_C | B71: http://piedmontvahistory.org/archives14/index.php/items/show/945 | C71: 1904 | D71: 117 | H71: Chance | I71: Dickinson | J71: Mattie | K71: Anderson | M71: X | N71: 31 | O71: =+C71-N71 -> 1873 | P71: 17 | Q71: =+C71-P71 -> 1887 | R71: For following columns see image from URL
A72: 1920_D | B72: http://piedmontvahistory.org/archives14/index.php/items/show/1015 | C72: 1920 | D72: 97 | H72: Geo | I72: Haynes | J72: Mattie | K72: Anderson | M72: X | N72: 51 | O72: =+C72-N72 -> 1869 | P72: 28 | Q72: =+C72-P72 -> 1892 | R72: For following columns see image from URL
A73: 1877_C | B73: http://piedmontvahistory.org/archives14/items/show/820 | C73: 1877 | D73: 9 | H73: Wm | I73: Jefferson | J73: Milly | K73: Anderson | M73: X | N73: 21 | O73: =+C73-N73 -> 1856 | P73: 20 | Q73: =+C73-P73 -> 1857 | R73: For following columns see image from URL
A74: 1878_C | B74: http://piedmontvahistory.org/archives14/items/show/825 | C74: 1878 | D74: 10 | H74: Ephraim | I74: Morris | J74: Mona | K74: Anderson | M74: X | N74: 30 | O74: =+C74-N74 -> 1848 | P74: 28 | Q74: =+C74-P74 -> 1850 | R74: For following columns see image from URL
A75: 1901_E | B75: http://piedmontvahistory.org/archives14/index.php/items/show/934 | C75: 1901 | D75: 142 | H75: Jno W | I75: Borkley | J75: Myrtle | K75: Anderson | M75: X | N75: 24 | O75: =+C75-N75 -> 1877 | P75: 20 | Q75: =+C75-P75 -> 1881 | R75: For following columns see image from URL
A76: 1881_C | B76: http://piedmontvahistory.org/archives14/items/show/840 | C76: 1881 | D76: 28 | H76: Elihu | I76: West | J76: Nancy | K76: Anderson | M76: X | N76: 21 | O76: =+C76-N76 -> 1860 | P76: 22 | Q76: =+C76-P76 -> 1859 | R76: For following columns see image from URL
A77: 1894_C | B77: http://piedmontvahistory.org/archives14/index.php/items/show/904 | C77: 1894 | D77: 21 | H77: Grant | I77: Pleasants | J77: Nannie | K77: Anderson | M77: X | N77: 25 | O77: =+C77-N77 -> 1869 | P77: 24 | Q77: =+C77-P77 -> 1870 | R77: For following columns see image from URL
A78: 1883_D | B78: http://piedmontvahistory.org/archives14/items/show/850 | C78: 1883 | D78: 37 | H78: Juber | I78: Johnson | J78: Orenna | K78: Anderson | M78: X | N78: 21 | O78: =+C78-N78 -> 1862 | P78: 21 | Q78: =+C78-P78 -> 1862 | R78: For following columns see image from URL
A79: 1886_C | B79: http://piedmontvahistory.org/archives14/index.php/items/show/862 | C79: 1886 | D79: 8 | H79: Wm | I79: Thaniel | J79: Prescilla | K79: Anderson | M79: X | N79: 24 | O79: =+C79-N79 -> 1862 | P79: 20 | Q79: =+C79-P79 -> 1866 | R79: For following columns see image from URL
A80: 1917_C | B80: http://piedmontvahistory.org/archives14/index.php/items/show/1002 | C80: 1917 | D80: 14 | H80: Wm | I80: Wormley | J80: Rebecca | K80: Anderson | M80: X | N80: 32 | O80: =+C80-N80 -> 1885 | P80: 22 | Q80: =+C80-P80 -> 1895 | R80: For following columns see image from URL
A81: 1885_C | B81: http://piedmontvahistory.org/archives14/index.php/items/show/858 | C81: 1885 | D81: 32 | H81: Luke | I81: Woodford | J81: Rosa | K81: Anderson | M81: X | N81: 32 | O81: =+C81-N81 -> 1853 | P81: 23 | Q81: =+C81-P81 -> 1862 | R81: For following columns see image from URL
A82: 1916_C | B82: http://piedmontvahistory.org/archives14/index.php/items/show/998 | C82: 1916 | D82: 93 | H82: Clyde | I82: Mansfield | J82: Saddie | K82: Anderson | M82: X | N82: 27 | O82: =+C82-N82 -> 1889 | P82: 21 | Q82: =+C82-P82 -> 1895 | R82: For following columns see image from URL
A83: 1868_B | B83: http://piedmontvahistory.org/archives14/items/show/778 | C83: 1868 | D83: 36 | H83: Henry | I83: Watson | J83: Sally | K83: Anderson | M83: X | N83: 24 | O83: =+C83-N83 -> 1844 | P83: 24 | Q83: =+C83-P83 -> 1844 | R83: For following columns see image from URL
A84: 1868 1869 | B84: http://piedmontvahistory.org/archives14/items/show/1166 | C84: 1868 | D84: 1 | H84: Henry | I84: Watson | J84: Sally | K84: Anderson | M84: X | O84: =+C84-N84 ->  | P84: 24 | Q84: =+C84-P84 -> 1844 | R84: For following columns see image from URL
A85: 1878_C | B85: http://piedmontvahistory.org/archives14/items/show/825 | C85: 1878 | D85: 22 | H85: Jas | I85: Hunter | J85: Sally | K85: Anderson | M85: X | N85: 27 | O85: =+C85-N85 -> 1851 | P85: 22 | Q85: =+C85-P85 -> 1856 | R85: For following columns see image from URL
A86: 1879_C | B86: http://piedmontvahistory.org/archives14/items/show/831 | C86: 1879 | D86: 8 | H86: John W | I86: Hooker | J86: Sally | K86: Anderson | M86: X | N86: 21 | O86: =+C86-N86 -> 1858 | P86: 19 | Q86: =+C86-P86 -> 1860 | R86: For following columns see image from URL
A87: 1886_C | B87: http://piedmontvahistory.org/archives14/index.php/items/show/862 | C87: 1886 | D87: 15 | H87: Demetrius | I87: Thaniel | J87: Sally G | K87: Anderson | M87: X | N87: 27 | O87: =+C87-N87 -> 1859 | P87: 21 | Q87: =+C87-P87 -> 1865 | R87: For following columns see image from URL
A88: 1909_C | B88: http://piedmontvahistory.org/archives14/index.php/items/show/967 | C88: 1909 | D88: 99 | H88: Samuel | I88: White | J88: Sarah | K88: Anderson | M88: X | N88: 29 | O88: =+C88-N88 -> 1880 | P88: 29 | Q88: =+C88-P88 -> 1880 | R88: For following columns see image from URL
A89: 1869_B | B89: http://piedmontvahistory.org/archives14/items/show/783 | C89: 1869 | D89: 52 | H89: Richard | I89: Hope | J89: Susan | K89: Anderson | M89: X | N89: 33 | O89: =+C89-N89 -> 1836 | P89: 30 | Q89: =+C89-P89 -> 1839 | R89: For following columns see image from URL
A90: 1887_F | B90: http://www.piedmontvahistory.org/archives14/items/show/870 | C90: 1887 | D90: 25 | H90: Robert | I90: Clark | J90: Susan | K90: Anderson | M90: X | N90: 24 | O90: =+C90-N90 -> 1863 | P90: 20 | Q90: =+C90-P90 -> 1867 | R90: For following columns see image from URL
A91: 1888_D | B91: http://www.piedmontvahistory.org/archives14/items/show/874 | C91: 1888 | D91: 11 | H91: Robert | I91: Clark | J91: Susan | K91: Anderson | M91: X | N91: 24 | O91: =+C91-N91 -> 1864 | P91: 20 | Q91: =+C91-P91 -> 1868 | R91: For following columns see image from URL
A92: 1888_H | B92: http://piedmontvahistory.org/archives14/index.php/items/show/878 | C92: 1888 | D92: 11 | H92: Robert | I92: Clark | J92: Susan | K92: Anderson | M92: X | N92: 24 | O92: =+C92-N92 -> 1864 | P92: 20 | Q92: =+C92-P92 -> 1868 | R92: For following columns see image from URL
A93: 1907_D | B93: http://piedmontvahistory.org/archives14/index.php/items/show/959 | C93: 1907 | D93: 100 | H93: Chas K | I93: Chisholm | J93: Susie | K93: Anderson | M93: X | N93: 25 | O93: =+C93-N93 -> 1882 | P93: 21 | Q93: =+C93-P93 -> 1886 | R93: For following columns see image from URL
A94: 1911_C | B94: http://piedmontvahistory.org/archives14/index.php/items/show/977 | C94: 1911 | D94: 71 | H94: Moses | I94: Wormley | J94: Susie | K94: Anderson | M94: X | N94: 32 | O94: =+C94-N94 -> 1879 | P94: 21 | Q94: =+C94-P94 -> 1890 | R94: For following columns see image from URL
A95: 1927_C | B95: http://piedmontvahistory.org/archives14/index.php/items/show/1042 | C95: 1927 | D95: 83 | H95: Obie | I95: Hughes | J95: Susie E | K95: Anderson | M95: X | N95: 26 | O95: =+C95-N95 -> 1901 | P95: 19 | Q95: =+C95-P95 -> 1908 | R95: For following columns see image from URL
A96: 1918_C | B96: http://piedmontvahistory.org/archives14/index.php/items/show/1006 | C96: 1918 | D96: 5 | H96: Poindexter | I96: Haydon | J96: Willie A | K96: Anderson | M96: X | N96: 32 | O96: =+C96-N96 -> 1886 | P96: 28 | Q96: =+C96-P96 -> 1890 | R96: For following columns see image from URL
A97: 1888_F | B97: http://piedmontvahistory.org/archives14/index.php/items/show/876 | C97: 1888 | D97: 26 | H97: Henry | I97: Payne | J97: Sue | K97: Andres | M97: X | N97: 30 | O97: =+C97-N97 -> 1858 | P97: 19 | Q97: =+C97-P97 -> 1869 | R97: For following columns see image from URL
A98: 1915_D | B98: http://piedmontvahistory.org/archives14/index.php/items/show/994 | C98: 1915 | D98: 95 | H98: Jno L | I98: Tyler | J98: Amanda E | K98: Andrews | M98: X | N98: 24 | O98: =+C98-N98 -> 1891 | P98: 21 | Q98: =+C98-P98 -> 1894 | R98: For following columns see image from URL
A99: 1886_D | B99: http://piedmontvahistory.org/archives14/index.php/items/show/863 | C99: 1886 | D99: 10 | H99: Jas | I99: Coleman | J99: Julia | K99: Andrews | M99: X | N99: 20 | O99: =+C99-N99 -> 1866 | P99: 21 | Q99: =+C99-P99 -> 1865 | R99: For following columns see image from URL
A100: 1935_B | B100: http://piedmontvahistory.org/archives14/items/show/1073 | C100: 1935 | D100: 11 | H100: Irvin H | I100: Harris | J100: Lottie | K100: Anthony | M100: X | N100: 22 | O100: =+C100-N100 -> 1913 | P100: 18 | Q100: =+C100-P100 -> 1917 | R100: For following columns see image from URL
A101: 1935_B | B101: http://piedmontvahistory.org/archives14/items/show/1073 | C101: 1935 | D101: 19 | H101: Burford G | I101: Sharpe | J101: Myrtle M | K101: Armstrong | M101: X | N101: 28 | O101: =+C101-N101 -> 1907 | P101: 18 | Q101: =+C101-P101 -> 1917 | R101: For following columns see image from URL
A102: 1935_D | B102: http://piedmontvahistory.org/archives14/items/show/1075 | C102: 1935 | D102: 11 | H102: Robert | I102: Whittaker | J102: Bernice | K102: Arnett | M102: X | N102: 24 | O102: =+C102-N102 -> 1911 | P102: 16 | Q102: =+C102-P102 -> 1919 | R102: For following columns see image from URL
A103: 1919_B | B103: http://piedmontvahistory.org/archives14/index.php/items/show/1009 | C103: 1919 | D103: 66 | H103: Robt | I103: Gilliam | J103: Daisy | K103: Arnett | M103: X | N103: 32 | O103: =+C103-N103 -> 1887 | P103: 21 | Q103: =+C103-P103 -> 1898 | R103: For following columns see image from URL
A104: 1907_D | B104: http://piedmontvahistory.org/archives14/index.php/items/show/959 | C104: 1907 | D104: 103 | H104: John L | I104: Groom | J104: Gertie Lee | K104: Arnett | M104: X | N104: 21 | O104: =+C104-N104 -> 1886 | P104: 21 | Q104: =+C104-P104 -> 1886 | R104: For following columns see image from URL
A105: 1872_D | B105: http://piedmontvahistory.org/archives14/items/show/798 | C105: 1872 | D105: 52 | H105: Frank | I105: Nuckolls | J105: Malvena | K105: Arnett | M105: X | N105: 25 | O105: =+C105-N105 -> 1847 | P105: 21 | Q105: =+C105-P105 -> 1851 | R105: For following columns see image from URL
A106: 1913_C | B106: http://piedmontvahistory.org/archives14/index.php/items/show/985 | C106: 1913 | D106: 75 | H106: Wm Edward | I106: Carter | J106: Mary M | K106: Arnett | M106: X | N106: 28 | O106: =+C106-N106 -> 1885 | P106: 22 | Q106: =+C106-P106 -> 1891 | R106: For following columns see image from URL
A107: 1910_D | B107: http://piedmontvahistory.org/archives14/index.php/items/show/973 | C107: 1910 | D107: 51 | H107: Thomas | I107: Johnson Jr | J107: Mary S | K107: Arnett | M107: X | N107: 24 | O107: =+C107-N107 -> 1886 | P107: 17 | Q107: =+C107-P107 -> 1893 | R107: For following columns see image from URL
A108: 1888_E | B108: http://www.piedmontvahistory.org/archives14/items/show/875 | C108: 1888 | D108: 23 | H108: Geo W | I108: Bryant | J108: Jennie F | K108: Atkins | M108: X | N108: 24 | O108: =+C108-N108 -> 1864 | P108: 22 | Q108: =+C108-P108 -> 1866 | R108: For following columns see image from URL
A109: 1888_F | B109: http://piedmontvahistory.org/archives14/index.php/items/show/876 | C109: 1888 | D109: 23 | H109: Geo W | I109: Bryant | J109: Jennie F | K109: Atkins | M109: X | N109: 24 | O109: =+C109-N109 -> 1864 | P109: 22 | Q109: =+C109-P109 -> 1866 | R109: For following columns see image from URL
A110: 1909_C | B110: http://piedmontvahistory.org/archives14/index.php/items/show/967 | C110: 1909 | D110: 82 | H110: Chas W | I110: Harris | J110: Annie P | K110: Avrett | M110: X | N110: 21 | O110: =+C110-N110 -> 1888 | P110: 20 | Q110: =+C110-P110 -> 1889 | R110: For following columns see image from URL
A111: 1878_E | B111: http://piedmontvahistory.org/archives14/items/show/827 | C111: 1878 | D111: 87 | H111: Spencer | I111: Johnson | J111: Lucy | K111: Baber | M111: X | N111: 24 | O111: =+C111-N111 -> 1854 | P111: 16 | Q111: =+C111-P111 -> 1862 | R111: For following columns see image from URL
A112: 1935_B | B112: http://piedmontvahistory.org/archives14/items/show/1073 | C112: 1935 | D112: 8 | H112: Willmore J | I112: Proffitt | J112: Eva W | K112: Badgett | M112: X | N112: 27 | O112: =+C112-N112 -> 1908 | P112: 25 | Q112: =+C112-P112 -> 1910 | R112: For following columns see image from URL
A113: 1935_B | B113: http://piedmontvahistory.org/archives14/items/show/1073 | C113: 1935 | D113: 1 | H113: Richard B | I113: McCandlish | J113: Georgie P | K113: Bagby | M113: X | N113: 64 | O113: =+C113-N113 -> 1871 | P113: 61 | Q113: =+C113-P113 -> 1874 | R113: For following columns see image from URL
A114: 1935_B | B114: http://piedmontvahistory.org/archives14/items/show/1073 | C114: 1935 | D114: 7 | H114: Wm H | I114: Bagby | J114: Ida Alice | K114: Bagby | M114: X | N114: 18 | O114: =+C114-N114 -> 1917 | P114: 19 | Q114: =+C114-P114 -> 1916 | R114: For following columns see image from URL
A115: 1932_C | B115: http://piedmontvahistory.org/archives14/index.php/items/show/1062 | C115: 1932 | D115: 79 | H115: Morris C | I115: Winston | J115: Bertie H | K115: Bailey | M115: X | N115: 25 | O115: =+C115-N115 -> 1907 | P115: 20 | Q115: =+C115-P115 -> 1912 | R115: For following columns see image from URL
A116: 1889_C | B116: http://piedmontvahistory.org/archives14/index.php/items/show/881 | C116: 1889 | D116: 5 | H116: Alfred Omiga | I116: Smith | J116: Eliza | K116: Bailey | M116: X | N116: 36 | O116: =+C116-N116 -> 1853 | P116: 27 | Q116: =+C116-P116 -> 1862 | R116: For following columns see image from URL
A117: 1879_C | B117: http://piedmontvahistory.org/archives14/items/show/831 | C117: 1879 | D117: 6 | H117: Wm E | I117: Chiles | J117: Ann M | K117: Baker | M117: X | N117: 28 | O117: =+C117-N117 -> 1851 | P117: 20 | Q117: =+C117-P117 -> 1859 | R117: For following columns see image from URL
A118: 1886_D | B118: http://piedmontvahistory.org/archives14/index.php/items/show/863 | C118: 1886 | D118: 7 | H118: Alexr | I118: Wood | J118: Bettie | K118: Baker | M118: X | N118: 49 | O118: =+C118-N118 -> 1837 | P118: 40 | Q118: =+C118-P118 -> 1846 | R118: For following columns see image from URL
A119: 1900_C | B119: http://piedmontvahistory.org/archives14/index.php/items/show/928 | C119: 1900 | D119: 104 | H119: Geo A | I119: Tyler | J119: Cora L | K119: Baker | M119: X | N119: 29 | O119: =+C119-N119 -> 1871 | P119: 20 | Q119: =+C119-P119 -> 1880 | R119: For following columns see image from URL
A120: 1886_C | B120: http://piedmontvahistory.org/archives14/index.php/items/show/862 | C120: 1886 | D120: 14 | H120: Jas H | I120: Gilliam | J120: Cozetta | K120: Baker | M120: X | N120: 21 | O120: =+C120-N120 -> 1865 | P120: 21 | Q120: =+C120-P120 -> 1865 | R120: For following columns see image from URL
A121: 1869_A | B121: http://piedmontvahistory.org/archives14/items/show/782 | C121: 1869 | D121: 12 | H121: Nelson | I121: Winston | J121: Dilsy | K121: Baker | M121: X | N121: 36 | O121: =+C121-N121 -> 1833 | P121: 24 | Q121: =+C121-P121 -> 1845 | R121: For following columns see image from URL
A122: 1928_C | B122: http://piedmontvahistory.org/archives14/index.php/items/show/1046 | C122: 1928 | D122: 68 | H122: Clifford | I122: Trice | J122: Elizabeth | K122: Baker | M122: X | N122: 25 | O122: =+C122-N122 -> 1903 | P122: 18 | Q122: =+C122-P122 -> 1910 | R122: For following columns see image from URL
A123: 1928_D | B123: http://piedmontvahistory.org/archives14/index.php/items/show/1047 | C123: 1928 | D123: 68 | H123: Clifford | I123: Trice | J123: Elizabeth | K123: Baker | M123: X | N123: 25 | O123: =+C123-N123 -> 1903 | P123: 18 | Q123: =+C123-P123 -> 1910 | R123: For following columns see image from URL
A124: 1891_G | B124: http://piedmontvahistory.org/archives14/index.php/items/show/892 | C124: 1891 | D124: 21 | H124: Owen | I124: Johnson | J124: Ellen | K124: Baker | M124: X | N124: 28 | O124: =+C124-N124 -> 1863 | P124: 21 | Q124: =+C124-P124 -> 1870 | R124: For following columns see image from URL
A125: 1892_C | B125: http://piedmontvahistory.org/archives14/index.php/items/show/895 | C125: 1892 | D125: 12 | H125: Owen | I125: Johnson | J125: Ellen | K125: Baker | M125: X | N125: 28 | O125: =+C125-N125 -> 1864 | P125: 21 | Q125: =+C125-P125 -> 1871 | R125: For following columns see image from URL
A126: 1887_E | B126: http://piedmontvahistory.org/archives14/index.php/items/show/869 | C126: 1887 | D126: 10 | H126: Lewis | I126: Hackney | J126: Elmira | K126: Baker | M126: X | N126: 23 | O126: =+C126-N126 -> 1864 | P126: 19 | Q126: =+C126-P126 -> 1868 | R126: For following columns see image from URL
A127: 1924_C | B127: http://piedmontvahistory.org/archives14/index.php/items/show/1031 | C127: 1924 | D127: 85 | H127: Thos | I127: Price | J127: Eva | K127: Baker | M127: X | N127: 27 | O127: =+C127-N127 -> 1897 | P127: 33 | Q127: =+C127-P127 -> 1891 | R127: For following columns see image from URL
A128: 1905_C | B128: http://piedmontvahistory.org/archives14/index.php/items/show/949 | C128: 1905 | D128: 86 | H128: M Clelan | I128: Trice | J128: Fade Belle | K128: Baker | M128: X | N128: 22 | O128: =+C128-N128 -> 1883 | P128: 21 | Q128: =+C128-P128 -> 1884 | R128: For following columns see image from URL
A129: 1885_C | B129: http://piedmontvahistory.org/archives14/index.php/items/show/858 | C129: 1885 | D129: 8 | H129: Michael | I129: White | J129: Henrietta | K129: Baker | M129: X | N129: 26 | O129: =+C129-N129 -> 1859 | P129: 20 | Q129: =+C129-P129 -> 1865 | R129: For following columns see image from URL
A130: 1906_D | B130: http://piedmontvahistory.org/archives14/index.php/items/show/954 | C130: 1906 | D130: 96 | H130: Benj | I130: Robinson | J130: Jane | K130: Baker | M130: X | N130: 55 | O130: =+C130-N130 -> 1851 | P130: 47 | Q130: =+C130-P130 -> 1859 | R130: For following columns see image from URL
A131: 1887_E | B131: http://piedmontvahistory.org/archives14/index.php/items/show/869 | C131: 1887 | D131: 33 | H131: Jos | I131: Reynolds | J131: Lee | K131: Baker | M131: X | N131: 29 | O131: =+C131-N131 -> 1858 | P131: 18 | Q131: =+C131-P131 -> 1869 | R131: For following columns see image from URL
A132: 1870_C | B132: http://piedmontvahistory.org/archives14/items/show/788 | C132: 1870 | D132: 32 | H132: Stephen | I132: Johnson | J132: Letitia Ann | K132: Baker | M132: X | N132: 21 | O132: =+C132-N132 -> 1849 | P132: 22 | Q132: =+C132-P132 -> 1848 | R132: For following columns see image from URL
A133: 1893_D | B133: http://piedmontvahistory.org/archives14/index.php/items/show/901 | C133: 1893 | D133: 40 | H133: Moses | I133: Moss | J133: Lucy M | K133: Baker | M133: X | N133: 22 | O133: =+C133-N133 -> 1871 | P133: 20 | Q133: =+C133-P133 -> 1873 | R133: For following columns see image from URL
A134: 1886_C | B134: http://piedmontvahistory.org/archives14/index.php/items/show/862 | C134: 1886 | D134: 31 | H134: Harrisson | I134: Scott | J134: Malvina | K134: Baker | M134: X | N134: 56 | O134: =+C134-N134 -> 1830 | P134: 54 | Q134: =+C134-P134 -> 1832 | R134: For following columns see image from URL
A135: 1907_D | B135: http://piedmontvahistory.org/archives14/index.php/items/show/959 | C135: 1907 | D135: 120 | H135: James | I135: Christian | J135: Mandy | K135: Baker | M135: X | N135: 25 | O135: =+C135-N135 -> 1882 | P135: 24 | Q135: =+C135-P135 -> 1883 | R135: For following columns see image from URL
A136: 1878_E | B136: http://piedmontvahistory.org/archives14/items/show/827 | C136: 1878 | D136: 86 | H136: Elijah | I136: Johnson | J136: Margaret | K136: Baker | M136: X | N136: 20 | O136: =+C136-N136 -> 1858 | P136: 17 | Q136: =+C136-P136 -> 1861 | R136: For following columns see image from URL
A137: 1895_C | B137: http://piedmontvahistory.org/archives14/index.php/items/show/908 | C137: 1895 | D137: 5 | H137: Randall | I137: Winston | J137: Martha | K137: Baker | M137: X | N137: 49 | O137: =+C137-N137 -> 1846 | P137: 18 | Q137: =+C137-P137 -> 1877 | R137: For following columns see image from URL
A138: 1871_C | B138: http://piedmontvahistory.org/archives14/items/show/793 | C138: 1871 | D138: 33 | H138: Geo | I138: Casey | J138: Mary | K138: Baker | M138: X | N138: 22 | O138: =+C138-N138 -> 1849 | P138: 24 | Q138: =+C138-P138 -> 1847 | R138: For following columns see image from URL
A139: 1896_C | B139: http://piedmontvahistory.org/archives14/index.php/items/show/913 | C139: 1896 | D139: 39 | H139: Robert W | I139: Rawlings | J139: Melvina | K139: Baker | M139: X | N139: 22 | O139: =+C139-N139 -> 1874 | P139: 23 | Q139: =+C139-P139 -> 1873 | R139: For following columns see image from URL
A140: 1900_C | B140: http://piedmontvahistory.org/archives14/index.php/items/show/928 | C140: 1900 | D140: 84 | H140: Mack | I140: Coleman | J140: Minnie | K140: Baker | M140: X | N140: 27 | O140: =+C140-N140 -> 1873 | P140: 20 | Q140: =+C140-P140 -> 1880 | R140: For following columns see image from URL
A141: 1902_B | B141: http://piedmontvahistory.org/archives14/index.php/items/show/936 | C141: 1902 | D141: 63 | H141: Daniel | I141: Brown | J141: Pinkey | K141: Baker | M141: X | N141: 28 | O141: =+C141-N141 -> 1874 | P141: 26 | Q141: =+C141-P141 -> 1876 | R141: For following columns see image from URL
A142: 1908_C | B142: http://piedmontvahistory.org/archives14/index.php/items/show/963 | C142: 1908 | D142: 147 | H142: Richard | I142: Coleman | J142: Rachel | K142: Baker | M142: X | N142: 30 | O142: =+C142-N142 -> 1878 | P142: 18 | Q142: =+C142-P142 -> 1890 | R142: For following columns see image from URL
A143: 1935_A | B143: http://piedmontvahistory.org/archives14/items/show/1072 | C143: 1935 | D143: 3 | H143: Edward E | I143: Badgett | J143: Rosa L | K143: Baker | M143: X | N143: 24 | O143: =+C143-N143 -> 1911 | P143: 16 | Q143: =+C143-P143 -> 1919 | R143: For following columns see image from URL
A144: 1876_C | B144: http://piedmontvahistory.org/archives14/items/show/816 | C144: 1876 | D144: 13 | H144: Isaac | I144: Gibson | J144: Sarah | K144: Baker | M144: X | N144: 27 | O144: =+C144-N144 -> 1849 | P144: 21 | Q144: =+C144-P144 -> 1855 | R144: For following columns see image from URL
A145: 1883_D | B145: http://piedmontvahistory.org/archives14/items/show/850 | C145: 1883 | D145: 53 | H145: John | I145: Chiles | J145: Sarah J | K145: Baker | M145: X | N145: 27 | O145: =+C145-N145 -> 1856 | P145: 22 | Q145: =+C145-P145 -> 1861 | R145: For following columns see image from URL
A146: 1911_D | B146: http://piedmontvahistory.org/archives14/index.php/items/show/978 | C146: 1911 | D146: 108 | H146: Lee B | I146: Burnett | J146: Susan Ann | K146: Baker | M146: X | N146: 28 | O146: =+C146-N146 -> 1883 | P146: 25 | Q146: =+C146-P146 -> 1886 | R146: For following columns see image from URL
A147: 1910_D | B147: http://piedmontvahistory.org/archives14/index.php/items/show/973 | C147: 1910 | D147: 42 | H147: Mr John R | I147: Graves | J147: Charlotte Elizabeth | K147: Ball | M147: X | N147: 48 | O147: =+C147-N147 -> 1862 | P147: 39 | Q147: =+C147-P147 -> 1871 | R147: For following columns see image from URL
A148: 1916_C | B148: http://piedmontvahistory.org/archives14/index.php/items/show/998 | C148: 1916 | D148: 90 | H148: Granville | I148: Simms | J148: Nancy | K148: Banester | M148: X | N148: 21 | O148: =+C148-N148 -> 1895 | P148: 19 | Q148: =+C148-P148 -> 1897 | R148: For following columns see image from URL
A149: 1927_C | B149: http://piedmontvahistory.org/archives14/index.php/items/show/1042 | C149: 1927 | D149: 95 | H149: Vaughan | I149: Carter | J149: Lucy E | K149: Banister | M149: X | N149: 33 | O149: =+C149-N149 -> 1894 | P149: 22 | Q149: =+C149-P149 -> 1905 | R149: For following columns see image from URL
A150: 1895_C | B150: http://piedmontvahistory.org/archives14/index.php/items/show/908 | C150: 1895 | D150: 31 | H150: John | I150: Fletcher | J150: Rosa | K150: Banister | M150: X | N150: 21 | O150: =+C150-N150 -> 1874 | P150: 19 | Q150: =+C150-P150 -> 1876 | R150: For following columns see image from URL
A151: 1887_E | B151: http://piedmontvahistory.org/archives14/index.php/items/show/869 | C151: 1887 | D151: 25 | H151: Lewis | I151: Meredith | J151: Alice | K151: Banks | M151: X | N151: 21 | O151: =+C151-N151 -> 1866 | P151: 18 | Q151: =+C151-P151 -> 1869 | R151: For following columns see image from URL
A152: 1932_D | B152: http://piedmontvahistory.org/archives14/index.php/items/show/1063 | C152: 1932 | D152: 98 | H152: Claud P | I152: Charis | J152: Annie | K152: Banks | M152: X | N152: 22 | O152: =+C152-N152 -> 1910 | P152: 21 | Q152: =+C152-P152 -> 1911 | R152: For following columns see image from URL
A153: 1867_D | B153: http://piedmontvahistory.org/archives14/items/show/776 | C153: 1867 | D153: 62 | H153: Peter | I153: Daniel | J153: Caroline | K153: Banks | M153: X | N153: 22 | O153: =+C153-N153 -> 1845 | P153: 18 | Q153: =+C153-P153 -> 1849 | R153: For following columns see image from URL
A154: 1868_A | B154: http://piedmontvahistory.org/archives14/items/show/777 | C154: 1868 | D154: 10 | H154: Jacob | I154: Watson | J154: Easter | K154: Banks | M154: X | N154: 21 | O154: =+C154-N154 -> 1847 | P154: 21 | Q154: =+C154-P154 -> 1847 | R154: For following columns see image from URL
A155: 1869_A | B155: http://piedmontvahistory.org/archives14/items/show/782 | C155: 1869 | D155: 16 | H155: Wm | I155: Hester | J155: Elizabeth | K155: Banks | M155: X | N155: 54 | O155: =+C155-N155 -> 1815 | P155: 31 | Q155: =+C155-P155 -> 1838 | R155: For following columns see image from URL
A156: 1868 1869 | B156: http://piedmontvahistory.org/archives14/items/show/1166 | C156: 1869 | D156: 23 | H156: William | I156: Hester | J156: Elizabeth | K156: Banks | M156: X | N156: 54 | O156: =+C156-N156 -> 1815 | P156: 30 | Q156: =+C156-P156 -> 1839 | R156: For following columns see image from URL
A157: 1874_C | B157: http://piedmontvahistory.org/archives14/items/show/806 | C157: 1874 | D157: 16 | H157: Henry | I157: Baker | J157: Elizabeth | K157: Banks | M157: X | N157: 27 | O157: =+C157-N157 -> 1847 | P157: 28 | Q157: =+C157-P157 -> 1846 | R157: For following columns see image from URL
A158: 1915_D | B158: http://piedmontvahistory.org/archives14/index.php/items/show/994 | C158: 1915 | D158: 118 | H158: Robt | I158: Shelton | J158: Elizth | K158: Banks | M158: X | N158: 71 | O158: =+C158-N158 -> 1844 | P158: 42 | Q158: =+C158-P158 -> 1873 | R158: For following columns see image from URL
A159: 1884_C | B159: http://piedmontvahistory.org/archives14/index.php/items/show/853 | C159: 1884 | D159: 1 | H159: Benjamin | I159: Crowell | J159: Fany | K159: Banks | M159: X | N159: 28 | O159: =+C159-N159 -> 1856 | P159: 23 | Q159: =+C159-P159 -> 1861 | R159: For following columns see image from URL
A160: 1878_C | B160: http://piedmontvahistory.org/archives14/items/show/825 | C160: 1878 | D160: 19 | H160: Alexr | I160: Cromwell | J160: Jane | K160: Banks | M160: X | N160: 21 | O160: =+C160-N160 -> 1857 | P160: 17 | Q160: =+C160-P160 -> 1861 | R160: For following columns see image from URL
A161: 1893_C | B161: http://piedmontvahistory.org/archives14/index.php/items/show/899 | C161: 1893 | D161: 27 | H161: Ro L | I161: Johnson | J161: Jennie J | K161: Banks | M161: X | N161: 22 | O161: =+C161-N161 -> 1871 | P161: 20 | Q161: =+C161-P161 -> 1873 | R161: For following columns see image from URL
A162: 1871_C | B162: http://piedmontvahistory.org/archives14/items/show/793 | C162: 1871 | D162: 7 | H162: Fleming | I162: Shelton | J162: Lizzie | K162: Banks | M162: X | N162: 23 | O162: =+C162-N162 -> 1848 | P162: 21 | Q162: =+C162-P162 -> 1850 | R162: For following columns see image from URL
A163: 1893_C | B163: http://piedmontvahistory.org/archives14/index.php/items/show/899 | C163: 1893 | D163: 9 | H163: Mat | I163: Herndon | J163: Lizzie | K163: Banks | M163: X | N163: 21 | O163: =+C163-N163 -> 1872 | P163: 21 | Q163: =+C163-P163 -> 1872 | R163: For following columns see image from URL
A164: 1887_F | B164: http://www.piedmontvahistory.org/archives14/items/show/870 | C164: 1887 | D164: 19 | H164: Jos L | I164: Quarles | J164: Lucy | K164: Banks | M164: X | N164: 24 | O164: =+C164-N164 -> 1863 | P164: 20 | Q164: =+C164-P164 -> 1867 | R164: For following columns see image from URL
A165: 1888_D | B165: http://www.piedmontvahistory.org/archives14/items/show/874 | C165: 1888 | D165: 5 | H165: Jos L | I165: Quarles | J165: Lucy | K165: Banks | M165: X | N165: 24 | O165: =+C165-N165 -> 1864 | P165: 20 | Q165: =+C165-P165 -> 1868 | R165: For following columns see image from URL
A166: 1888_H | B166: http://piedmontvahistory.org/archives14/index.php/items/show/878 | C166: 1888 | D166: 5 | H166: Jos L | I166: Quarles | J166: Lucy | K166: Banks | M166: X | N166: 24 | O166: =+C166-N166 -> 1864 | P166: 20 | Q166: =+C166-P166 -> 1868 | R166: For following columns see image from URL
A167: 1902_A | B167: http://piedmontvahistory.org/archives14/index.php/items/show/935 | C167: 1902 | D167: 4 | H167: John O | I167: Mallory | J167: Lucy E | K167: Banks | M167: X | N167: 36 | O167: =+C167-N167 -> 1866 | P167: 35 | Q167: =+C167-P167 -> 1867 | R167: For following columns see image from URL
A168: 1885_D | B168: http://piedmontvahistory.org/archives14/index.php/items/show/859 | C168: 1885 | D168: 12 | H168: Thomas | I168: Jackson | J168: Maria | K168: Banks | M168: X | N168: 21 | O168: =+C168-N168 -> 1864 | P168: 21 | Q168: =+C168-P168 -> 1864 | R168: For following columns see image from URL
A169: 1904_C | B169: http://piedmontvahistory.org/archives14/index.php/items/show/945 | C169: 1904 | D169: 85 | H169: Thos C | I169: Parrish | J169: Martha | K169: Banks | M169: X | N169: 48 | O169: =+C169-N169 -> 1856 | P169: 30 | Q169: =+C169-P169 -> 1874 | R169: For following columns see image from URL
A170: 1903_A | B170: http://piedmontvahistory.org/archives14/index.php/items/show/939 | C170: 1903 | D170: 57 | H170: Edwd | I170: Barker | J170: Martha | K170: Banks | M170: X | N170: 32 | O170: =+C170-N170 -> 1871 | P170: 24 | Q170: =+C170-P170 -> 1879 | R170: For following columns see image from URL
A171: 1882_C | B171: http://piedmontvahistory.org/archives14/items/show/844 | C171: 1882 | D171: 14 | H171: Wm | I171: Wilkerson | J171: Martha E | K171: Banks | M171: X | N171: 23 | O171: =+C171-N171 -> 1859 | P171: 16 | Q171: =+C171-P171 -> 1866 | R171: For following columns see image from URL
A172: 1874_C | B172: http://piedmontvahistory.org/archives14/items/show/806 | C172: 1874 | D172: 25 | H172: Frank | I172: Johnson | J172: Mary | K172: Banks | M172: X | N172: 25 | O172: =+C172-N172 -> 1849 | P172: 18 | Q172: =+C172-P172 -> 1856 | R172: For following columns see image from URL
A173: 1895_C | B173: http://piedmontvahistory.org/archives14/index.php/items/show/908 | C173: 1895 | D173: 18 | H173: James | I173: Gooch | J173: Mary | K173: Banks | M173: X | N173: 24 | O173: =+C173-N173 -> 1871 | P173: 22 | Q173: =+C173-P173 -> 1873 | R173: For following columns see image from URL
A174: 1879_D | B174: http://piedmontvahistory.org/archives14/items/show/832 | C174: 1879 | D174: 60 | H174: Luther | I174: Parrish | J174: Mary F | K174: Banks | M174: X | N174: 24 | O174: =+C174-N174 -> 1855 | P174: 23 | Q174: =+C174-P174 -> 1856 | R174: For following columns see image from URL
A175: 1891_D | B175: http://piedmontvahistory.org/archives14/index.php/items/show/889 | C175: 1891 | D175: 31 | H175: Magee | I175: Mitchell | J175: Nannie | K175: Banks | M175: X | N175: 26 | O175: =+C175-N175 -> 1865 | P175: 22 | Q175: =+C175-P175 -> 1869 | R175: For following columns see image from URL
A176: 1908_C | B176: http://piedmontvahistory.org/archives14/index.php/items/show/963 | C176: 1908 | D176: 146 | H176: Mat | I176: Smith | J176: Ocie | K176: Banks | M176: X | N176: 56 | O176: =+C176-N176 -> 1852 | P176: 31 | Q176: =+C176-P176 -> 1877 | R176: For following columns see image from URL
A177: 1920_C | B177: http://piedmontvahistory.org/archives14/index.php/items/show/1014 | C177: 1920 | D177: 73 | H177: Wm | I177: Jackson | J177: Peggie | K177: Banks | M177: X | N177: 22 | O177: =+C177-N177 -> 1898 | P177: 15 | Q177: =+C177-P177 -> 1905 | R177: For following columns see image from URL
A178: 1902_A | B178: http://piedmontvahistory.org/archives14/index.php/items/show/935 | C178: 1902 | D178: 36 | H178: Ralph | I178: Poindexter | J178: Sarah | K178: Banks | M178: X | N178: 23 | O178: =+C178-N178 -> 1879 | P178: 17 | Q178: =+C178-P178 -> 1885 | R178: For following columns see image from URL
A179: 1930_C | B179: http://piedmontvahistory.org/archives14/index.php/items/show/1054 | C179: 1930 | D179: 75 | H179: Willis | I179: Ware | J179: Susie | K179: Banks | M179: X | N179: 51 | O179: =+C179-N179 -> 1879 | P179: 42 | Q179: =+C179-P179 -> 1888 | R179: For following columns see image from URL
A180: 1911_C | B180: http://piedmontvahistory.org/archives14/index.php/items/show/977 | C180: 1911 | D180: 74 | H180: Phillip | I180: Smith | J180: War | K180: Banks | M180: X | N180: 22 | O180: =+C180-N180 -> 1889 | P180: 21 | Q180: =+C180-P180 -> 1890 | R180: For following columns see image from URL
A181: 1925_D | B181: http://piedmontvahistory.org/archives14/index.php/items/show/1035 | C181: 1925 | D181: 21 | H181: John | I181: Quarles | J181: Nettie | K181: Bannister | M181: X | N181: 33 | O181: =+C181-N181 -> 1892 | P181: 24 | Q181: =+C181-P181 -> 1901 | R181: For following columns see image from URL
A182: 1878_D | B182: http://piedmontvahistory.org/archives14/items/show/826 | C182: 1878 | D182: 60 | H182: Ned | I182: Harvey | J182: Jane | K182: Barbent | M182: X | N182: 50 | O182: =+C182-N182 -> 1828 | P182: 40 | Q182: =+C182-P182 -> 1838 | R182: For following columns see image from URL
A183: 1934_A | B183: http://piedmontvahistory.org/archives14/items/show/1068 | C183: 1934 | D183: 16 | H183: Benjamin R | I183: Kessler | J183: Ellanora J | K183: Barber | M183: X | N183: 22 | O183: =+C183-N183 -> 1912 | P183: 23 | Q183: =+C183-P183 -> 1911 | R183: For following columns see image from URL
A184: 1868_B | B184: http://piedmontvahistory.org/archives14/items/show/778 | C184: 1868 | D184: 12 | H184: Nick | I184: Jackson | J184: Caroline | K184: Barbour | M184: X | N184: 30 | O184: =+C184-N184 -> 1838 | P184: 21 | Q184: =+C184-P184 -> 1847 | R184: For following columns see image from URL
A185: 1868CC | B185: http://piedmontvahistory.org/archives14/items/show/1165 | C185: 1868 | D185: 19 | H185: Nick | I185: Jackson | J185: Caroline | K185: Barbour | M185: X | N185: 30 | O185: =+C185-N185 -> 1838 | P185: 21 | Q185: =+C185-P185 -> 1847 | R185: For following columns see image from URL
A186: 1925_D | B186: http://piedmontvahistory.org/archives14/index.php/items/show/1035 | C186: 1925 | D186: 33 | H186: Rosewell | I186: Atkins | J186: Chassie | K186: Barbour | M186: X | N186: 22 | O186: =+C186-N186 -> 1903 | P186: 22 | Q186: =+C186-P186 -> 1903 | R186: For following columns see image from URL
A187: 1887_E | B187: http://piedmontvahistory.org/archives14/index.php/items/show/869 | C187: 1887 | D187: 4 | H187: Jno L | I187: Braxton | J187: Jennie | K187: Bardon | M187: X | N187: 20 | O187: =+C187-N187 -> 1867 | P187: 16 | Q187: =+C187-P187 -> 1871 | R187: For following columns see image from URL
A188: 1906_E | B188: http://piedmontvahistory.org/archives14/index.php/items/show/955 | C188: 1906 | D188: 140 | H188: Henry | I188: Johnson | J188: Addie Dean | K188: Barker | M188: X | N188: 28 | O188: =+C188-N188 -> 1878 | P188: 16 | Q188: =+C188-P188 -> 1890 | R188: For following columns see image from URL
A189: 1915_C | B189: http://piedmontvahistory.org/archives14/index.php/items/show/993 | C189: 1915 | D189: 61 | H189: Thos | I189: Bratcher | J189: Annie | K189: Barker | M189: X | N189: 22 | O189: =+C189-N189 -> 1893 | P189: 16 | Q189: =+C189-P189 -> 1899 | R189: For following columns see image from URL
A190: 1914_C | B190: http://piedmontvahistory.org/archives14/index.php/items/show/989 | C190: 1914 | D190: 69 | H190: L Z | I190: Coleman | J190: Earlin | K190: Barker | M190: X | N190: 22 | O190: =+C190-N190 -> 1892 | P190: 18 | Q190: =+C190-P190 -> 1896 | R190: For following columns see image from URL
A191: 1919_A | B191: http://piedmontvahistory.org/archives14/index.php/items/show/1008 | C191: 1919 | D191: 14 | H191: Oscar | I191: Poindexter | J191: Nora L | K191: Barker | M191: X | N191: 24 | O191: =+C191-N191 -> 1895 | P191: 18 | Q191: =+C191-P191 -> 1901 | R191: For following columns see image from URL
A192: 1907_C | B192: http://piedmontvahistory.org/archives14/index.php/items/show/958 | C192: 1907 | D192: 63 | H192: Richard | I192: Carter | J192: Sallie | K192: Barker | M192: X | N192: 23 | O192: =+C192-N192 -> 1884 | P192: 24 | Q192: =+C192-P192 -> 1883 | R192: For following columns see image from URL
A193: 1933_A | B193: http://piedmontvahistory.org/archives14/index.php/items/show/1064 | C193: 1933 | D193: 19 | H193: Jessie L | I193: Hensley | J193: Stella P | K193: Barlow | M193: X | N193: 24 | O193: =+C193-N193 -> 1909 | P193: 21 | Q193: =+C193-P193 -> 1912 | R193: For following columns see image from URL
A194: 1883_D | B194: http://piedmontvahistory.org/archives14/items/show/850 | C194: 1883 | D194: 38 | H194: Joseph | I194: Vest | J194: Meretha | K194: Barnes | M194: X | N194: 24 | O194: =+C194-N194 -> 1859 | P194: 38 | Q194: =+C194-P194 -> 1845 | R194: For following columns see image from URL
A195: 1881_C | B195: http://piedmontvahistory.org/archives14/items/show/840 | C195: 1881 | D195: 34 | H195: Geo W | I195: Michie | J195: Ella | K195: Barret | M195: X | N195: 23 | O195: =+C195-N195 -> 1858 | P195: 23 | Q195: =+C195-P195 -> 1858 | R195: For following columns see image from URL
A196: 1878_D | B196: http://piedmontvahistory.org/archives14/items/show/826 | C196: 1878 | D196: 66 | H196: John | I196: Johnson | J196: Julia | K196: Barret | M196: X | N196: 21 | O196: =+C196-N196 -> 1857 | P196: 24 | Q196: =+C196-P196 -> 1854 | R196: For following columns see image from URL
A197: 1884_D | B197: http://piedmontvahistory.org/archives14/index.php/items/show/854 | C197: 1884 | D197: 39 | H197: James | I197: Anderson | J197: Mary Jane | K197: Barret | M197: X | N197: 23 | O197: =+C197-N197 -> 1861 | P197: 20 | Q197: =+C197-P197 -> 1864 | R197: For following columns see image from URL
A198: 1909_D | B198: http://piedmontvahistory.org/archives14/index.php/items/show/968 | C198: 1909 | D198: 138 | H198: William | I198: Pleasants | J198: Mattie O | K198: Barret | M198: X | N198: 35 | O198: =+C198-N198 -> 1874 | P198: 23 | Q198: =+C198-P198 -> 1886 | R198: For following columns see image from URL
A199: 1934_C | B199: http://piedmontvahistory.org/archives14/items/show/1070 | C199: 1934 | D199: 75 | H199: James | I199: Smith | J199: Bertha | K199: Barrett | M199: X | N199: 22 | O199: =+C199-N199 -> 1912 | P199: 18 | Q199: =+C199-P199 -> 1916 | R199: For following columns see image from URL
A200: 1923_C | B200: http://piedmontvahistory.org/archives14/index.php/items/show/1026 | C200: 1923 | D200: 84 | H200: Garfield | I200: Kimbrough | J200: Bessie | K200: Barrett | M200: X | N200: 40 | O200: =+C200-N200 -> 1883 | P200: 30 | Q200: =+C200-P200 -> 1893 | R200: For following columns see image from URL
... 4365 more rows
